bitfinex/quotes_ETHUSD_20250925
["timestamp","ask_amount","ask_price","bid_price","bid_amount"]
[1758824485517,0.26470313,3889.7,3887.8,0.4528]
[1758824485925,0.02570313,3889.6,3887.9,3.146]
[1758824486126,0.239,3889.7,3887.8,0.4528]
[1758824486327,0.02570313,3889.6,3887.8,0.4528]
[1758824486526,14.208363,3889.5,3887.9,2.779]
[1758824486745,14.16606613,3889.4,3888.0,2.143]
[1758824486950,0.239,3889.4,3888.0,2.6773]
[1758824487159,0.239,3889.9,3888.0,2.6773]
[1758824487446,0.02570313,3889.8,3888.0,2.6773]
[1758824487650,0.239,3889.9,3888.1,0.0257195]
[1758824487949,0.02570313,3889.8,3888.2,7.526]
[1758824488258,0.02570313,3889.8,3888.2,8.35666]
[1758824488564,0.02570313,3889.8,3888.0,0.5343]
[1758824488719,0.02570313,3889.8,3888.3,7.524]
[1758824489150,0.02570313,3889.8,3888.4,0.02571751]
[1758824489319,0.02570313,3889.9,3888.4,0.02571751]
[1758824489520,0.239,3890.0,3888.4,0.02571751]
[1758824489719,0.239,3890.0,3888.3,7.524]
[1758824489956,0.239,3890.0,3888.4,0.82231]
[1758824490144,0.02570313,3890.4,3888.4,0.82231]
[1758824490452,0.02570313,3890.4,3888.5,0.6991]
[1758824490653,0.02570313,3890.5,3888.5,0.6991]
[1758824490812,0.02570313,3890.5,3888.6,0.6991]
[1758824491021,0.75095859,3891.3,3888.8,0.792]
[1758824491214,0.51195859,3891.3,3889.0,0.792]
[1758824491420,0.51195859,3891.3,3889.1,5.26581288]
[1758824491759,0.51195859,3891.3,3889.2,2.8421]
[1758824492053,0.51195859,3891.3,3889.3,12.7581]
[1758824492217,0.51195859,3891.3,3889.4,1.97491]
[1758824492718,0.26470313,3891.2,3889.4,1.97491]
[1758824492921,0.239,3891.1,3889.5,4.193]
[1758824493235,0.239,3891.1,3889.4,0.4528]
[1758824493236,0.02570313,3891.0,3889.6,0.02570958]
[1758824493443,0.02570313,3891.0,3889.7,3.019]
[1758824493655,0.02570313,3891.0,3889.8,0.02570826]
[1758824494032,0.239,3891.1,3889.8,0.33017909]
[1758824494226,0.239,3891.1,3889.7,3.019]
[1758824494227,0.02570313,3891.0,3889.4,0.4528]
[1758824494426,0.02570313,3891.0,3887.4,3.0]
[1758824494427,0.6805,3890.9,3889.5,2.142]
[1758824494621,15.58324313,3890.8,3889.6,2.142]
[1758824494822,0.239,3890.7,3889.6,2.142]
[1758824495023,0.02570313,3890.6,3889.7,0.02570892]
[1758824495221,20.261528,3890.5,3889.5,2.142]
[1758824495440,20.261528,3890.5,3888.4,0.2463]
[1758824495441,20.08473113,3890.4,3889.0,2.142]
[1758824495720,0.239,3891.0,3889.1,0.47851288]
[1758824495926,0.02570313,3890.9,3889.1,0.02571288]
[1758824496163,0.02570313,3890.9,3889.0,0.4293]
[1758824496164,3.257446,3890.8,3889.2,2.142]
[1758824496460,3.48927513,3890.7,3889.3,0.02571156]
[1758824496659,17.366012,3890.6,3889.3,0.02571156]
[1758824496955,17.366012,3890.6,3888.3,0.2463]
[1758824496956,17.807512,3890.6,3889.0,2.142]
[1758824497157,12.998831,3890.5,3889.1,0.02571288]
[1758824497334,6.838301,3890.4,3889.1,0.02571288]
[1758824497662,0.239,3890.5,3889.1,0.02571288]
[1758824498262,0.128,3889.7,3889.1,0.15371288]
[1758824498448,0.239,3890.0,3889.2,2.142]
[1758824498775,0.4415,3890.0,3889.0,0.002]
[1758824499061,0.239,3889.9,3889.0,0.002]
[1758824499440,8.098635,3889.8,3889.0,0.002]
[1758824499641,3.115627,3889.8,3889.0,0.002]
[1758824499841,0.40311589,3890.4,3889.0,0.002]
[1758824499842,0.239,3889.7,3889.0,0.002]
[1758824500042,0.64211589,3890.4,3889.0,0.002]
[1758824500362,0.239,3890.4,3889.1,5.326]
[1758824500568,0.239,3891.1,3889.2,0.2463]
[1758824500750,0.239,3891.1,3889.3,0.02571156]
[1758824501065,0.239,3891.1,3889.4,0.4528]
[1758824501252,0.239,3891.1,3889.5,0.02571024]
[1758824501449,0.4415,3891.0,3889.2,0.2463]
[1758824501660,18.084732,3890.9,3889.0,0.002]
[1758824501862,0.239,3890.9,3889.1,3.001]
[1758824502064,3.0,3890.7,3889.0,0.002]
[1758824502253,3.0,3890.5,3889.0,0.002]
[1758824502458,3.0,3890.3,3889.0,0.002]
[1758824502632,3.0,3890.1,3889.0,0.002]
[1758824502838,3.0,3889.9,3889.0,0.002]
[1758824503060,6.864641,3889.8,3889.0,0.002]
[1758824503239,0.4415,3890.7,3889.0,0.002]
[1758824503563,0.239,3891.0,3889.1,0.4528]
[1758824503767,3.0,3890.8,3889.2,2.94871222]
[1758824504072,0.239,3891.6,3889.3,1.06408122]
[1758824504369,0.239,3892.2,3889.4,0.6991]
[1758824504558,0.239,3892.2,3889.5,14.8501]
[1758824504753,0.239,3892.2,3889.6,0.6991]
[1758824504954,0.6805,3892.2,3889.7,6.0101]
[1758824505154,0.4415,3892.2,3889.8,8.50681]
[1758824505360,0.239,3892.1,3889.9,0.6991]
[1758824505653,0.239,3892.1,3890.0,0.4528]
[1758824505846,0.239,3892.1,3890.1,7.449]
[1758824506046,0.239,3891.8,3890.1,7.449]
[1758824506869,0.6805,3891.8,3890.1,7.449]
[1758824507074,11.321683,3891.2,3889.4,0.4528]
[1758824507366,0.239,3891.2,3889.5,2.142]
[1758824507674,0.239,3891.2,3889.6,2.142]
[1758824507976,0.51295859,3891.3,3889.6,2.142]
[1758824508178,0.51295859,3891.3,3889.7,1.419]
[1758824508591,0.51295859,3891.3,3889.7,0.675]
[1758824508894,0.128,3890.9,3890.3,0.128]
[1758824509381,0.51295859,3891.3,3889.8,3.453]
[1758824509545,0.128,3890.8,3890.2,0.128]
[1758824510179,0.128,3890.8,3890.3,0.02570495]
[1758824510654,0.128,3890.8,3890.2,0.128]
[1758824511677,0.55260373,3891.2,3890.0,0.2412]
[1758824511876,0.128,3891.0,3890.3,0.128]
[1758824512275,0.128,3891.0,3890.3,0.37912]
[1758824512478,0.128,3891.0,3890.0,0.2412]
[1758824512666,0.51295859,3891.3,3890.2,0.128]
[1758824512870,0.128,3891.0,3890.2,0.128]
[1758824513070,0.128,3891.0,3890.2,0.5618]
[1758824513380,0.128,3890.8,3890.2,0.128]
[1758824513582,0.2452,3890.9,3890.0,2.142]
[1758824513750,0.55284363,3890.8,3889.9,2.142]
[1758824513951,0.128,3890.3,3889.7,0.128]
[1758824514146,0.55290136,3890.2,3889.6,2.142]
[1758824514349,0.55306411,3890.1,3889.6,2.142]
[1758824514650,0.55306411,3890.0,3889.6,2.142]
[1758824514845,0.55306411,3889.9,3889.7,0.02570892]
[1758824515045,0.69019095,3890.9,3889.7,0.42727057]
[1758824515258,0.69019095,3890.9,3889.4,0.675]
[1758824515259,1.48841149,3890.8,3889.6,2.142]
[1758824515548,3.69019095,3890.6,3889.7,0.02570892]
[1758824515747,3.69019095,3890.6,3889.0,0.002]
[1758824515748,0.55302054,3890.5,3889.0,0.002]
[1758824515979,0.55302054,3890.4,3889.1,2.142]
[1758824516181,0.69019095,3890.2,3889.6,0.002]
[1758824516384,0.69019095,3889.9,3889.6,0.002]
[1758824516551,1.24321149,3889.8,3889.6,0.002]
[1758824516751,1.24321149,3889.7,3889.6,0.002]
[1758824516947,1.26882054,3889.7,3889.6,0.002]
[1758824517259,1.24496672,3889.7,3889.6,0.002]
[1758824517475,0.69194618,3890.5,3889.6,0.677]
[1758824517660,1.1654546,3890.8,3889.6,0.677]
[1758824517661,0.55343876,3890.4,3889.6,0.4358]
[1758824517860,0.55343876,3890.3,3889.6,0.002]
[1758824518180,1.1654546,3890.8,3889.6,0.002]
[1758824518181,0.55343876,3890.2,3889.6,0.002]
[1758824518356,0.55343876,3890.1,3889.6,0.002]
[1758824518556,0.55343876,3890.0,3889.6,0.002]
[1758824518875,0.69194618,3889.8,3889.6,0.002]
[1758824519077,0.55343876,3889.7,3889.6,0.002]
[1758824519251,0.79863876,3889.7,3889.6,0.002]
[1758824519581,1.26923876,3889.7,3889.6,0.002]
[1758824519784,0.79863876,3889.7,3889.6,0.002]
[1758824520495,9.50351876,3889.7,3889.6,0.002]
[1758824520695,4.26923876,3889.7,3889.6,0.002]
[1758824521049,4.26923876,3889.7,3889.0,0.002]
[1758824521050,0.792,3889.5,3889.0,0.002]
[1758824521247,0.792,3889.2,3889.0,0.002]
[1758824521483,11.52235316,3889.1,3889.0,0.002]
[1758824521718,6.41123876,3889.1,3889.0,0.002]
[1758824522008,12.27745174,3889.1,3889.0,0.002]
[1758824522167,13.06945174,3889.1,3889.0,0.002]
[1758824522586,10.56180364,3889.1,3889.0,0.002]
[1758824522790,14.76369262,3889.1,3889.0,0.002]
[1758824523205,14.17346674,3889.1,3889.0,0.002]
[1758824523370,8.66817776,3889.1,3889.0,0.002]
[1758824523566,9.50323876,3889.1,3889.0,0.002]
[1758824523772,10.64368974,3889.1,3889.0,0.002]
[1758824524001,11.10678974,3889.1,3889.0,0.002]
[1758824524379,18.48378974,3889.1,3889.0,0.002]
[1758824524583,32.05575974,3889.1,3889.0,0.002]
[1758824524910,6.36368574,3888.5,3886.5,0.2436]
[1758824525081,7.83759729,3888.5,3887.0,2.5726313]
[1758824525275,20.21151729,3888.5,3886.6,0.4584]
[1758824525473,13.7330245,3888.5,3887.1,2.57260815]
[1758824525673,3.55343876,3888.5,3887.2,0.02572545]
[1758824525899,6.3590245,3888.5,3887.3,2.57246983]
[1758824526086,6.3590245,3888.5,3887.4,0.02572413]
[1758824526087,14.96451713,3888.5,3887.4,0.02572413]
[1758824526288,13.4038085,3888.5,3887.0,0.702]
[1758824526607,25.4498565,3888.5,3888.4,1e-08]
[1758824526817,2.57175187,3888.4,3886.1,0.128]
[1758824527104,2.57175187,3888.4,3885.8,0.2436]
[1758824527105,0.128,3886.6,3886.0,2.57333991]
[1758824527274,0.128,3886.6,3886.1,2.57327302]
[1758824527469,5.224,3887.2,3885.8,0.2436]
[1758824527675,5.814079,3887.1,3885.8,0.2436]
[1758824527870,0.128,3886.0,3885.9,2.57340641]
[1758824528075,0.128,3886.0,3885.9,0.4584]
[1758824528417,0.128,3886.0,3885.3,0.702]
[1758824528715,0.55128968,3887.1,3885.9,2.57340641]
[1758824528917,0.128,3886.6,3886.0,0.702]
[1758824529110,2.57294879,3886.6,3886.0,0.4584]
[1758824529318,0.128,3886.1,3885.6,2.5735986]
[1758824529625,3.0,3887.1,3885.7,0.702]
[1758824529781,5.143,3887.4,3885.8,0.702]
[1758824529988,3.0,3887.1,3885.9,0.02573406]
[1758824530210,3.012178,3887.0,3885.8,0.702]
[1758824530409,3.0,3886.4,3885.6,2.57355121]
[1758824530616,3.0,3887.0,3885.7,0.02573538]
[1758824530791,2.082435,3886.9,3885.7,0.4584]
[1758824530992,3.0,3887.2,3885.8,0.2436]
[1758824531194,0.40356033,3887.3,3886.5,2.57295849]
[1758824531502,8.212,3887.6,3886.2,0.702]
[1758824531687,5.5724305,3887.4,3886.6,2.57289111]
[1758824531888,2.925433,3887.3,3886.7,2.57281705]
[1758824532079,2.925433,3887.3,3886.5,2.57298473]
[1758824532080,3.0,3887.1,3886.5,2.57296601]
[1758824532284,5.57236633,3887.5,3886.5,2.57296601]
[1758824532487,3.0,3887.3,3885.3,0.702]
[1758824532717,0.2339,3887.2,3885.4,1.05552438]
[1758824532884,3.0,3887.1,3885.4,3.62923501]
[1758824533085,2.57287225,3886.8,3886.0,2.57329238]
[1758824533317,3.0,3887.4,3885.4,0.78618701]
[1758824533614,6.7,3889.8,3885.5,0.702]
[1758824533615,0.4631,3887.8,3885.5,0.702]
[1758824533914,10.506974,3887.7,3885.6,0.702]
[1758824534116,7.274217,3887.6,3885.7,2.57353887]
[1758824534421,6.602877,3887.5,3885.8,0.702]
[1758824534621,3.092862,3887.4,3886.1,2.57324468]
[1758824534919,2.57275067,3886.9,3886.0,2.57334019]
[1758824535123,6.54949,3886.8,3885.4,0.002]
[1758824535290,0.697,3887.3,3885.4,0.002]
[1758824535291,3.0,3886.6,3885.4,2.146]
[1758824535489,3.0,3886.8,3885.4,0.002]
[1758824535819,3.551067,3886.7,3885.6,2.5736051]
[1758824535984,5.215,3886.8,3886.2,2.57316162]
[1758824536331,3.0,3887.3,3886.6,2.57288139]
[1758824536485,3.0,3887.3,3886.6,2.57288209]
[1758824536701,3.0,3887.3,3886.7,2.57284659]
[1758824536899,2.57261792,3887.1,3886.3,2.57307612]
[1758824537225,3.0,3886.8,3885.9,2.57334464]
[1758824537426,2.57282613,3886.8,3886.0,2.57328977]
[1758824537599,15.558038,3886.7,3885.7,2.57350953]
[1758824537807,0.2339,3886.7,3885.5,2.144]
[1758824538005,3.0,3886.5,3885.5,2.144]
[1758824538312,2.57307533,3886.4,3885.5,2.144]
[1758824538539,2.57307533,3886.4,3885.4,2.57567673]
[1758824538540,2.57345891,3885.9,3885.4,0.002]
[1758824538846,2.57352831,3885.8,3885.4,0.002]
[1758824539025,0.2278,3885.8,3885.4,0.002]
[1758824539617,0.2278,3885.7,3885.4,0.002]
[1758824540114,0.2278,3885.6,3885.4,0.002]
[1758824540320,5.57367134,3885.5,3885.4,0.002]
[1758824540510,11.19567134,3885.5,3885.4,0.002]
[1758824540702,28.18746934,3885.5,3885.4,0.002]
[1758824540938,29.26920334,3885.5,3885.4,0.002]
[1758824541239,29.81876263,3885.5,3885.4,0.002]
[1758824541638,30.50523041,3885.5,3885.4,0.002]
[1758824542221,29.81876263,3885.5,3885.4,0.002]
[1758824542746,30.50493897,3885.5,3885.4,0.002]
[1758824542948,5.57387007,3885.2,3885.1,1e-08]
[1758824543151,8.40407438,3885.2,3885.1,1e-08]
[1758824543326,25.33965136,3885.2,3885.1,1e-08]
[1758824543716,26.77396136,3885.2,3885.1,1e-08]
[1758824544046,27.6888009,3885.2,3885.1,1e-08]
[1758824544254,2.5751195,3883.4,3882.8,0.4422]
[1758824544453,2.5751195,3883.4,3882.4,2.144]
[1758824544454,3.157971,3883.3,3882.4,0.4422]
[1758824544619,2.837137,3883.2,3882.4,0.4422]
[1758824544822,3.0,3883.6,3882.6,2.57559367]
[1758824545017,3.0,3883.6,3882.7,0.2497]
[1758824545222,3.0,3884.1,3882.8,3.0176076]
[1758824545458,2.57521651,3883.2,3882.8,0.4422]
[1758824545659,2.57537344,3883.0,3882.2,2.57579596]
[1758824545958,3.0,3882.8,3881.5,0.2497]
[1758824546255,3.0,3882.6,3881.5,0.2497]
[1758824546558,3.0,3883.0,3881.6,0.4422]
[1758824546764,7.2780697,3883.0,3881.7,0.2497]
[1758824547092,5.168,3883.1,3881.6,0.4422]
[1758824547093,3.0,3882.9,3881.6,3.26813521]
[1758824547233,3.0,3882.7,3881.1,0.6919]
[1758824547439,5.57568892,3882.5,3881.1,0.6919]
[1758824547765,3.0,3882.3,3881.2,0.02576522]
[1758824547941,3.0,3882.3,3881.3,2.57645634]
[1758824548142,3.0,3882.0,3881.1,0.71766589]
[1758824548369,3.17065796,3882.1,3881.1,0.71766589]
[1758824548580,0.17065796,3882.1,3880.7,0.2497]
[1758824548784,3.0,3881.9,3879.8,0.4422]
[1758824549082,3.0,3881.2,3880.4,2.57704338]
[1758824549376,3.0,3881.2,3880.1,1.895]
[1758824549672,0.2278,3881.4,3880.3,2.57712032]
[1758824549881,3.0,3881.2,3880.0,2.3947]
[1758824550051,3.0,3881.3,3880.1,2.57719178]
[1758824550246,3.0,3881.0,3879.9,0.4422]
[1758824550463,3.0,3880.8,3879.9,0.4422]
[1758824550648,3.0,3880.8,3880.1,2.57723364]
[1758824550850,3.0,3880.8,3879.9,0.4422]
[1758824551052,0.40413684,3881.3,3879.9,0.4422]
[1758824551053,0.40413684,3881.3,3880.8,2.57678173]
[1758824551252,3.68641298,3881.7,3880.0,0.27547319]
[1758824551253,0.54780687,3881.7,3880.2,2.146]
[1758824551454,0.80289956,3882.1,3880.8,0.4422]
[1758824551678,0.80289956,3882.1,3880.3,0.6919]
[1758824551679,3.0,3881.3,3880.3,0.6919]
[1758824551899,0.54780687,3881.8,3880.4,1.2342]
[1758824552113,0.68641298,3882.3,3880.6,0.792]
[1758824552257,0.1713721,3882.3,3880.7,1.50966854]
[1758824552596,0.1753036,3882.4,3881.6,2.57619377]
[1758824552768,2.57591223,3882.2,3881.4,2.57637388]
[1758824553118,17.845732,3881.4,3876.2,3.487]
[1758824553262,17.845732,3881.4,3879.3,2.57778465]
[1758824553263,3.0,3881.0,3879.3,2.57778465]
[1758824553464,3.0,3881.0,3879.7,2.57751806]
[1758824553465,5.57687881,3880.7,3879.7,2.57751806]
[1758824553769,4.83786,3880.9,3876.7,8.049]
[1758824553770,2.57737551,3880.0,3876.7,8.049]
[1758824554003,2.5771109,3880.4,3879.2,2.57784521]
[1758824554294,0.2278,3880.2,3878.8,2.146]
[1758824554501,2.57732819,3880.0,3879.2,2.57783927]
[1758824554802,3.0,3879.8,3878.9,0.28379]
[1758824555101,8.767718,3879.7,3878.6,0.6919]
[1758824555306,0.2278,3880.2,3878.6,0.6919]
[1758824555307,3.0,3879.9,3878.6,0.6919]
[1758824555458,0.2278,3880.2,3878.6,0.6919]
[1758824555459,0.2278,3880.2,3878.7,2.60396524]
[1758824555766,0.2278,3880.2,3879.5,0.002]
[1758824555957,3.0,3879.6,3879.5,0.002]
[1758824556358,3.0,3879.6,3879.5,2.57965175]
[1758824556690,0.2278,3880.4,3879.5,0.6939]
[1758824556691,3.0,3880.4,3879.5,0.6939]
[1758824556892,3.0,3880.5,3879.5,0.4442]
[1758824557093,3.0,3880.6,3879.5,0.4442]
[1758824557274,3.0,3880.8,3880.1,2.57719959]
[1758824557591,3.924708,3880.7,3879.5,0.002]
[1758824557772,0.2278,3880.7,3879.5,0.002]
[1758824558090,3.0,3880.4,3879.5,0.002]
[1758824558303,3.0,3880.8,3879.5,0.002]
[1758824558506,3.0,3880.6,3879.6,2.57752203]
[1758824558661,0.2278,3880.9,3879.7,0.3813722]
[1758824558860,7.73752309,3881.2,3879.8,0.02577452]
[1758824559057,3.0,3880.9,3879.8,0.02577452]
[1758824559392,2.57658911,3881.1,3880.2,2.57713475]
[1758824559592,3.0,3881.1,3880.2,2.57713475]
[1758824559781,3.0,3881.1,3880.1,2.57723939]
[1758824560101,3.918275,3881.0,3879.5,0.002]
[1758824560263,3.916238,3880.9,3879.5,0.002]
[1758824560466,3.0,3880.7,3879.5,0.002]
[1758824560684,3.0,3880.5,3879.5,0.002]
[1758824560992,0.40424472,3880.5,3879.5,0.002]
[1758824561161,8.56224472,3880.5,3879.7,2.57746816]
[1758824561368,0.433,3880.9,3879.5,0.002]
[1758824561692,3.0,3880.8,3879.6,0.4422]
[1758824561892,3.0,3880.9,3880.2,2.57717982]
[1758824562074,3.0,3880.9,3879.7,0.40716651]
[1758824562274,2.57660731,3881.1,3880.3,2.57707201]
[1758824562506,2.57659125,3881.1,3880.2,2.57716883]
[1758824562660,2.57659125,3881.1,3879.8,2.939]
[1758824562661,2.57659987,3881.1,3880.4,2.5770449]
[1758824562864,3.0,3881.2,3879.9,2.57738601]
[1758824563095,8.16044299,3881.4,3880.6,2.57686542]
[1758824563278,3.0,3881.1,3880.5,2.57692477]
[1758824563482,5.584,3881.4,3880.0,0.58977773]
[1758824563483,0.1288,3880.5,3880.0,0.58977773]
[1758824563686,0.2278,3881.9,3880.6,2.57690991]
[1758824563885,2.57619489,3881.7,3880.6,0.2497]
[1758824564193,0.77312719,3881.9,3880.6,0.2497]
[1758824564394,0.77312719,3881.9,3880.6,0.53236895]
[1758824564599,0.2278,3882.5,3880.8,0.792]
[1758824564797,0.2278,3882.5,3881.0,0.792]
[1758824565104,0.1683742,3882.7,3881.3,0.792]
[1758824565399,2.83341298,3883.4,3880.9,8.079]
[1758824565400,0.2278,3883.5,3882.1,2.57589692]
[1758824565600,0.2278,3883.5,3882.2,0.50728969]
[1758824565601,0.40159953,3883.5,3882.2,0.50728969]
[1758824565899,0.40159953,3883.5,3882.3,0.02575792]
[1758824566100,0.40159953,3883.5,3882.2,0.792]
[1758824566101,0.40159953,3883.5,3882.8,2.57544634]
[1758824566402,0.40159953,3883.5,3882.4,2.147]
[1758824566604,0.40159953,3883.5,3882.9,2.57532871]
[1758824566765,0.40159953,3883.5,3882.4,2.147]
[1758824566966,0.40159953,3883.5,3882.6,2.57554322]
[1758824566967,2.57506366,3883.4,3882.6,2.57554322]
[1758824567301,0.40159953,3883.5,3882.3,2.147]
[1758824567500,2.57525449,3883.2,3882.4,2.57571738]
[1758824567702,0.77441974,3883.4,3882.3,2.147]
[1758824568084,0.54661974,3883.4,3882.8,2.5754255]
[1758824568303,0.54661974,3883.4,3882.9,2.57539467]
[1758824568599,0.54661974,3883.3,3882.6,2.57559367]
[1758824568803,0.54661974,3883.2,3882.4,0.4581]
[1758824569009,3.0,3883.2,3882.4,3.03381721]
[1758824569169,0.16986921,3883.5,3882.4,0.4581]
[1758824569368,0.54854524,3883.4,3882.4,0.4581]
[1758824569692,0.54854524,3883.3,3882.6,3.36759367]
[1758824569893,0.68641298,3883.8,3883.3,2.57511162]
[1758824570076,0.54889698,3883.7,3883.3,2.57511162]
[1758824570277,0.54889698,3883.6,3883.3,2.57507837]
[1758824570526,0.54889698,3883.5,3883.3,2.57509168]
[1758824570674,0.54889698,3883.4,3883.3,2.5751294]
[1758824570872,0.54889698,3883.4,3883.3,3.0332294]
[1758824571181,0.54889698,3883.4,3882.9,0.2308]
[1758824571377,0.54889698,3883.3,3883.0,2.57530885]
[1758824571591,0.54889698,3883.2,3882.7,2.147]
[1758824571840,3.2612937,3883.7,3882.8,2.57545994]
[1758824571991,1.23595397,3883.6,3882.8,2.575461]
[1758824572192,3.81096771,3883.5,3882.5,2.147]
[1758824572415,1.23595397,3883.4,3882.6,2.57553592]
[1758824572730,0.54954099,3883.3,3882.7,2.5755236]
[1758824573030,0.54954099,3883.2,3882.5,2.57561554]
[1758824573195,0.54954099,3883.1,3882.0,1.0228]
[1758824573396,0.54954099,3883.0,3882.6,2.57558079]
[1758824573606,0.128,3882.5,3882.0,0.792]
[1758824573806,0.68641298,3883.0,3881.6,0.6889]
[1758824574005,0.128,3882.1,3881.9,2.57601367]
[1758824574211,0.128,3882.1,3881.5,0.1288]
[1758824574425,0.1288,3881.7,3881.5,2.57631479]
[1758824574604,2.576042,3882.0,3881.1,2.57654361]
[1758824574803,0.1288,3881.3,3880.9,4.72368952]
[1758824575018,0.68641298,3881.8,3880.9,2.147]
[1758824575218,0.68641298,3881.5,3880.3,2.147]
[1758824575516,2.57646224,3881.3,3880.3,2.147]
[1758824575831,2.57646224,3881.3,3880.1,0.25857253]
[1758824575832,0.68641298,3880.9,3880.1,0.002]
[1758824576140,1.23666498,3880.8,3880.1,0.002]
[1758824576348,0.550252,3880.7,3880.1,0.002]
[1758824576646,0.550252,3880.6,3880.1,2.57924914]
[1758824576831,0.550252,3880.5,3880.3,2.57707103]
[1758824577018,0.550252,3880.4,3880.3,3.55085234]
[1758824577348,0.68641298,3881.0,3880.9,2.57672189]
[1758824577547,0.55004664,3881.0,3880.9,2.57672189]
[1758824577910,0.55004664,3881.0,3880.4,0.792]
[1758824578137,0.55004664,3880.9,3880.8,2.57674247]
[1758824578448,0.68641298,3881.5,3881.0,2.57665234]
[1758824578621,1.23637079,3881.4,3880.8,2.57677193]
[1758824578825,0.54995781,3881.3,3880.7,7.224]
[1758824579025,0.54995781,3881.2,3880.8,2.57678829]
[1758824579228,0.54995781,3881.1,3880.8,2.57673262]
[1758824579546,0.55024651,3881.0,3880.9,2.57671844]
[1758824579954,1.14981731,3881.8,3880.9,2.57671844]
[1758824579955,0.68641298,3881.6,3881.3,2.57640542]
[1758824580155,0.55044292,3881.5,3881.3,2.57640542]
[1758824580308,0.5504347,3881.4,3881.3,2.57645634]
[1758824580513,0.5504347,3881.4,3880.9,0.4581]
[1758824580749,0.5504347,3881.3,3881.2,3.36852272]
[1758824580919,0.68641298,3881.9,3881.8,2.57612447]
[1758824581243,0.55034706,3881.9,3881.8,2.57612447]
[1758824581441,0.68641298,3882.4,3882.2,2.57581293]
[1758824581642,0.55030231,3882.3,3881.8,0.2308]
[1758824581845,0.68641298,3882.1,3881.1,1.305]
[1758824582060,2.57606588,3881.9,3881.1,2.57655323]
[1758824582242,0.55030231,3881.8,3880.5,0.2308]
[1758824582415,0.78490231,3881.7,3880.6,4.958]
[1758824582617,0.55030231,3881.6,3880.6,4.958]
[1758824582816,2.57651401,3881.3,3880.4,3.0350881]
[1758824583063,3.12683659,3881.2,3880.4,2.5769881]
[1758824583219,0.55030231,3881.1,3880.4,5.061]
[1758824583420,3.12609269,3881.0,3880.1,0.002]
[1758824583620,0.54938299,3880.9,3880.1,0.002]
[1758824583814,3.50384245,3881.2,3880.1,0.002]
[1758824583815,0.54938299,3880.8,3880.4,2.57701067]
[1758824584017,0.54938299,3880.7,3880.6,2.57692109]
[1758824584217,0.54938273,3881.1,3880.1,1.05967253]
[1758824584424,0.68641298,3881.6,3880.7,0.792]
[1758824584637,0.54939755,3881.5,3880.8,7.202]
[1758824584836,0.68641298,3882.0,3880.9,1.0319]
[1758824585076,1.23579453,3881.9,3880.9,1.0319]
[1758824585230,0.1288,3881.3,3881.0,7.201]
[1758824585540,0.1288,3880.9,3880.1,0.002]
[1758824585747,1.25266714,3881.2,3880.3,2.57710002]
[1758824585748,0.54953912,3880.8,3880.3,2.57710002]
[1758824585951,0.1288,3880.3,3880.2,2.57716438]
[1758824586264,0.1288,3880.3,3880.2,3.04956438]
[1758824586432,0.1288,3880.3,3880.1,5.07577253]
[1758824586628,0.1288,3880.3,3880.1,0.002]
[1758824587030,0.2409,3880.2,3880.1,0.002]
[1758824587263,6.82895952,3880.2,3880.1,0.002]
[1758824587844,10.3435835,3880.2,3880.1,0.002]
[1758824588042,10.11855591,3880.2,3880.1,0.002]
[1758824588244,9.43214293,3880.2,3880.1,0.002]
[1758824588486,4.64165179,3880.2,3880.1,0.002]
[1758824588846,6.53263093,3880.2,3880.1,0.002]
[1758824589051,3.71454419,3880.2,3880.1,0.002]
[1758824589355,6.53263093,3880.2,3880.1,0.002]
[1758824589547,7.21883853,3880.2,3880.1,0.002]
[1758824589749,9.77443253,3880.2,3880.1,0.002]
[1758824590060,9.77443253,3880.2,3879.7,0.002]
[1758824590061,5.57745244,3879.8,3879.7,0.002]
[1758824590260,29.93639483,3879.8,3879.7,0.002]
[1758824590478,33.67415983,3879.8,3879.7,0.002]
[1758824590646,33.67415983,3879.8,3879.5,1e-08]
[1758824590837,33.67415983,3879.8,3877.6,2.147]
[1758824590838,3.0,3878.6,3877.6,2.147]
[1758824591168,21.39480478,3879.7,3877.7,0.7123]
[1758824591169,0.54907278,3878.5,3877.7,0.7123]
[1758824591348,0.54907278,3878.7,3878.2,2.57850889]
[1758824591545,0.54907278,3879.2,3878.9,2.57804691]
[1758824591749,0.54907278,3879.6,3879.2,2.57782509]
[1758824591948,0.54907278,3879.9,3879.2,0.7123]
[1758824592145,0.54907278,3880.1,3879.5,2.57764185]
[1758824592346,0.16547141,3880.2,3879.4,2.57767145]
[1758824592571,0.16547141,3880.2,3879.7,0.002]
[1758824592572,2.57724771,3880.2,3879.7,0.002]
[1758824592738,0.16501616,3880.3,3879.7,0.002]
[1758824592935,0.2409,3880.1,3879.7,0.002]
[1758824593280,3.0,3880.1,3879.7,0.002]
[1758824593481,0.15949984,3880.3,3879.8,0.4724]
[1758824593773,0.54826901,3881.1,3880.0,0.792]
[1758824593977,0.54826901,3881.3,3880.2,0.792]
[1758824594148,0.64511495,3882.4,3880.6,0.792]
[1758824594149,0.15982625,3881.9,3880.6,0.792]
[1758824594350,0.15982625,3881.9,3881.4,2.57633265]
[1758824594662,0.2409,3881.8,3881.2,2.57651665]
[1758824594971,0.16669716,3881.9,3881.2,0.792]
[1758824595177,0.001,3882.2,3881.2,0.792]
[1758824595376,2.57687366,3882.2,3881.2,3.36849693]
[1758824595692,3.0,3882.0,3881.4,2.57633279]
[1758824595872,0.001,3882.2,3881.2,0.792]